bitfinex/quotes_BTCUSD_20250714
["timestamp","ask_amount","ask_price","bid_price","bid_amount"]
[1752481080213,8.366e-05,122320.0,122310.0,1.34585003]
[1752481080518,8.366e-05,122320.0,122310.0,1.47229003]
[1752481080928,8.366e-05,122320.0,122310.0,1.42327003]
[1752481081047,8.366e-05,122320.0,122310.0,1.42427003]
[1752481081723,8.366e-05,122320.0,122310.0,1.29683003]
[1752481082509,8.366e-05,122320.0,122310.0,1.42427003]
[1752481082925,8.366e-05,122320.0,122310.0,1.29683003]
[1752481083142,8.366e-05,122320.0,122310.0,1.42427003]
[1752481083761,8.366e-05,122320.0,122310.0,1.44904918]
[1752481084610,8.366e-05,122320.0,122310.0,1.32160918]
[1752481084829,8.366e-05,122320.0,122310.0,1.12842361]
[1752481085111,4.41e-06,122320.0,122310.0,1.00102361]
[1752481085522,0.34888557,122340.0,122330.0,0.52801521]
[1752481085725,0.34888557,122340.0,122330.0,0.90506232]
[1752481086118,0.34888557,122340.0,122330.0,1.03246232]
[1752481087455,0.34888557,122340.0,122330.0,0.92843846]
[1752481087699,0.34888557,122340.0,122330.0,1.05583846]
[1752481087972,0.35088557,122340.0,122330.0,1.05683846]
[1752481088730,0.35388557,122340.0,122330.0,1.05783846]
[1752481089890,0.35388557,122340.0,122330.0,0.93043846]
[1752481090134,0.38078557,122340.0,122330.0,0.93043846]
[1752481090626,0.38078557,122340.0,122330.0,1.05779846]
[1752481090882,0.38078557,122340.0,122330.0,1.03442232]
[1752481091342,0.56061179,122340.0,122330.0,0.2977]
[1752481091596,0.97802439,122340.0,122330.0,0.2977]
[1752481092005,1.1867315,122340.0,122330.0,0.002]
[1752481092421,1.21179039,122340.0,122330.0,0.001]
[1752481092923,0.07892662,122310.0,122300.0,0.72406091]
[1752481093141,0.39951219,122310.0,122300.0,0.73685168]
[1752481093365,0.40668806,122310.0,122300.0,0.74502789]
[1752481093566,0.39851219,122310.0,122300.0,0.62584403]
[1752481093785,0.38316091,122310.0,122300.0,0.75320403]
[1752481093993,0.0544,122310.0,122300.0,0.62584403]
[1752481094316,0.37498557,122310.0,122300.0,0.62584403]
[1752481094532,0.38316091,122310.0,122300.0,0.75320403]
[1752481094730,0.38316098,122310.0,122300.0,0.75320403]
[1752481094978,0.38316091,122310.0,122300.0,0.75320403]
[1752481095175,0.37498557,122310.0,122300.0,0.75320403]
[1752481095403,0.28380244,122320.0,122310.0,0.18804593]
[1752481095404,0.15393573,122320.0,122310.0,0.18804593]
[1752481095536,0.48269631,122320.0,122310.0,0.18804593]
[1752481095731,0.66255227,122320.0,122310.0,0.31540607]
[1752481095986,0.654377,122320.0,122310.0,0.19622161]
[1752481096191,0.654377,122320.0,122310.0,0.32358161]
[1752481096391,0.654377,122320.0,122310.0,0.30723046]
[1752481096595,0.66255227,122320.0,122310.0,0.31540607]
[1752481096819,0.61518131,122320.0,122310.0,0.32558154]
[1752481097005,0.655377,122320.0,122310.0,0.32558154]
[1752481097182,0.655377,122320.0,122310.0,0.31740607]
[1752481097365,0.655377,122320.0,122310.0,0.19822161]
[1752481097562,0.44978096,122320.0,122310.0,0.20639708]
[1752481097784,0.49187145,122320.0,122310.0,0.33371708]
[1752481098173,0.49287145,122320.0,122310.0,0.33371708]
[1752481098374,0.61618131,122320.0,122310.0,0.31736607]
[1752481098592,0.66455221,122320.0,122310.0,0.317366]
[1752481098797,0.39423512,122320.0,122310.0,0.317366]
[1752481099006,0.44260575,122320.0,122310.0,0.19822147]
[1752481099205,0.45078082,122320.0,122310.0,0.32554147]
[1752481099424,0.43443081,122320.0,122310.0,0.32554147]
[1752481099632,0.002,122320.0,122310.0,0.94015415]
[1752481099856,0.002,122320.0,122310.0,1.04258858]
[1752481100279,0.002,122320.0,122310.0,0.91526858]
[1752481100521,0.002,122320.0,122310.0,1.04258858]
[1752481100933,0.00190469,122320.0,122310.0,1.04258858]
[1752481102463,0.02760469,122320.0,122310.0,1.04258858]
[1752481104167,0.02760469,122320.0,122310.0,0.91526858]
[1752481104392,0.02760469,122320.0,122310.0,1.04254858]
[1752481104601,0.05360469,122320.0,122310.0,1.04254858]
[1752481105055,0.02760469,122320.0,122310.0,1.04254858]
[1752481106149,0.34819026,122320.0,122310.0,1.04254858]
[1752481106961,0.02760469,122320.0,122310.0,1.04254858]
[1752481107183,0.05410469,122320.0,122310.0,0.91526858]
[1752481107399,0.02760469,122320.0,122310.0,1.04254858]
[1752481107847,0.00190469,122320.0,122310.0,1.04254858]
[1752481108812,0.00190469,122320.0,122310.0,1.36313415]
[1752481109038,0.00190469,122320.0,122310.0,1.28955415]
[1752481109493,0.00190469,122320.0,122310.0,1.41683415]
[1752481109967,0.00190469,122320.0,122310.0,1.33856415]
[1752481110199,0.46197273,122350.0,122340.0,0.18799983]
[1752481110424,0.50216842,122350.0,122340.0,0.31523983]
[1752481110693,0.49399569,122350.0,122340.0,0.31523983]
[1752481111144,0.50216836,122350.0,122340.0,0.31523983]
[1752481111379,0.82275393,122350.0,122340.0,0.31523983]
[1752481111618,0.81866492,122350.0,122340.0,0.31723983]
[1752481111850,0.07767935,122350.0,122340.0,0.39858694]
[1752481112079,0.44311059,122350.0,122340.0,0.39858694]
[1752481112346,0.42276492,122350.0,122340.0,0.39758694]
[1752481112598,0.43211058,122350.0,122340.0,0.39658694]
[1752481112825,0.42793765,122350.0,122340.0,0.39758694]
[1752481113057,0.43611045,122350.0,122340.0,0.39758694]
[1752481113798,0.42793765,122350.0,122340.0,0.39758694]
[1752481114171,0.43093765,122350.0,122340.0,0.39858694]
[1752481114622,0.43093765,122350.0,122340.0,0.69428694]
[1752481115056,0.43911045,122350.0,122340.0,0.69428694]
[1752481115268,0.10217935,122350.0,122340.0,0.69428694]
[1752481115470,0.36786492,122350.0,122340.0,0.27134694]
[1752481115715,0.04727935,122350.0,122340.0,0.39854694]
[1752481115936,0.44727935,122350.0,122340.0,0.27134694]
[1752481116120,0.44727935,122350.0,122340.0,0.39854694]
[1752481116473,0.75346923,122350.0,122340.0,0.39854694]
[1752481116671,0.79366492,122350.0,122340.0,0.39854694]
[1752481117459,0.75346923,122350.0,122340.0,0.39854694]
[1752481117676,0.79366492,122350.0,122340.0,0.39854694]
[1752481118868,0.47307935,122350.0,122340.0,0.39854694]
[1752481119273,0.79366492,122350.0,122340.0,0.39854694]
[1752481120488,0.47307935,122350.0,122340.0,0.39854694]
[1752481120695,0.79366492,122350.0,122340.0,0.39854694]
[1752481120935,0.79366492,122350.0,122340.0,0.27134694]
[1752481121129,0.72766923,122350.0,122340.0,0.39850694]
[1752481121352,0.76786492,122350.0,122340.0,0.27134694]
[1752481121558,0.76786492,122350.0,122340.0,0.39850694]
[1752481121792,0.79396492,122350.0,122340.0,0.39850694]
[1752481122032,0.75376923,122350.0,122340.0,0.27134694]
[1752481122289,0.79396492,122350.0,122340.0,0.39850694]
[1752481122537,0.75376923,122350.0,122340.0,0.39850694]
[1752481122754,0.79396492,122350.0,122340.0,0.39850694]
[1752481122995,0.80213759,122350.0,122340.0,0.39850694]
[1752481123191,0.79396492,122350.0,122340.0,0.39850694]
[1752481123674,0.40708366,122350.0,122340.0,0.27134694]
[1752481123899,0.40708366,122350.0,122340.0,0.39850694]
[1752481124119,0.40708366,122350.0,122340.0,0.73850694]
[1752481124328,0.00708366,122350.0,122340.0,0.76500694]
[1752481124750,0.00708366,122350.0,122340.0,0.61134694]
[1752481124982,0.32766923,122350.0,122340.0,0.73850694]
[1752481125444,0.00708366,122350.0,122340.0,0.73850694]
[1752481126424,0.32766923,122350.0,122340.0,1.03420694]
[1752481127999,0.35576923,122350.0,122340.0,1.03420694]
[1752481128212,0.00708366,122350.0,122340.0,1.03420694]
[1752481128416,0.32766923,122350.0,122340.0,1.03420694]
[1752481128854,0.00708366,122350.0,122340.0,0.90704694]
[1752481129006,0.00708366,122350.0,122340.0,1.28233251]
[1752481129217,0.00708366,122350.0,122340.0,0.90704694]
[1752481129422,0.39024196,122350.0,122340.0,1.03416694]
[1752481129599,0.3872419,122350.0,122340.0,1.03316694]
[1752481129819,0.37906923,122350.0,122340.0,1.03316694]
[1752481130030,0.03308366,122350.0,122340.0,1.03416694]
[1752481130229,0.00608366,122350.0,122340.0,0.90704694]
[1752481130443,0.00208366,122350.0,122340.0,1.03316694]
[1752481130625,8.366e-05,122350.0,122340.0,0.90504694]
[1752481130847,0.00408366,122350.0,122340.0,1.03312694]
[1752481131048,0.00408366,122350.0,122340.0,1.03212694]
[1752481131253,0.00108366,122350.0,122340.0,1.03212694]
[1752481131456,0.00308366,122350.0,122340.0,1.03212694]
[1752481135282,0.42922539,122360.0,122350.0,0.18798446]
[1752481135508,0.42105326,122360.0,122350.0,0.31506446]
[1752481135672,0.41288126,122360.0,122350.0,0.31506446]
[1752481136243,0.42105333,122360.0,122350.0,0.31506446]
[1752481136446,0.38988126,122360.0,122350.0,0.39741157]
[1752481136833,0.39288126,122360.0,122350.0,0.39741157]
[1752481137516,0.0321,122360.0,122350.0,0.39741157]
[1752481137723,0.04619569,122360.0,122350.0,0.39741157]
[1752481137936,0.07289569,122360.0,122350.0,0.39741157]
[1752481138139,0.0327,122360.0,122350.0,0.39741157]
[1752481138348,0.07289569,122360.0,122350.0,0.69311157]
[1752481138612,0.39348126,122360.0,122350.0,0.69311157]
[1752481139029,0.32658557,122360.0,122350.0,0.69311157]
[1752481139239,0.006,122360.0,122350.0,0.69307157]
[1752481139563,0.36678126,122360.0,122350.0,0.69307157]
[1752481139770,0.04619569,122360.0,122350.0,0.69307157]
[1752481140031,0.32658557,122360.0,122350.0,0.69307157]
[1752481140241,0.39328126,122360.0,122350.0,0.69307157]
[1752481140447,0.39328126,122360.0,122350.0,0.69303157]
[1752481140590,0.35308557,122360.0,122350.0,0.69303157]
[1752481140795,0.39328126,122360.0,122350.0,0.69303157]
[1752481140998,0.35308557,122360.0,122350.0,0.69303157]
[1752481141239,0.39228126,122360.0,122350.0,0.69303157]
[1752481141622,0.39228126,122360.0,122350.0,0.56603157]
[1752481141816,0.32558557,122360.0,122350.0,0.56603157]
[1752481142026,0.32558557,122360.0,122350.0,0.69303157]
[1752481142222,0.005,122360.0,122350.0,1.03303157]
[1752481142581,0.005,122360.0,122350.0,1.05923157]
[1752481143565,0.005,122360.0,122350.0,1.08653157]
[1752481144477,0.005,122360.0,122350.0,1.05923157]
[1752481144847,0.005,122360.0,122350.0,1.03303157]
[1752481145276,0.38748126,122370.0,122360.0,0.18796909]
[1752481145503,0.04019569,122370.0,122360.0,0.5233162]
[1752481145704,0.36078126,122370.0,122360.0,0.5233162]
[1752481146030,0.04019569,122370.0,122360.0,0.85514341]
[1752481146413,0.82205199,122380.0,122370.0,0.18795376]
[1752481146560,0.82205199,122380.0,122370.0,0.52326087]
[1752481146763,0.42205199,122380.0,122370.0,0.52326087]
[1752481146988,0.43839372,122380.0,122370.0,0.52326087]
[1752481147151,0.42205199,122380.0,122370.0,0.52326087]
[1752481147599,0.41388126,122380.0,122370.0,0.52326087]
[1752481147998,0.09329569,122380.0,122370.0,0.52326087]
[1752481148173,0.0531,122380.0,122370.0,0.52326087]
[1752481148395,0.0267,122380.0,122370.0,0.52326087]
[1752481148610,0.0287,122380.0,122370.0,0.52326087]
[1752481149054,0.002,122380.0,122370.0,0.52326087]
[1752481149269,0.82992172,122390.0,122380.0,0.18793839]
[1752481149475,0.8300752,122390.0,122380.0,0.5232055]
[1752481149658,0.830075,122390.0,122380.0,0.5232055]
[1752481149852,0.8219048,122390.0,122380.0,0.5232055]
[1752481150056,0.83007506,122390.0,122380.0,0.5232055]
[1752481150276,0.830075,122390.0,122380.0,0.5232055]
[1752481150683,0.02815348,122390.0,122380.0,0.8189055]
[1752481150856,0.02815348,122390.0,122380.0,0.8199055]
[1752481151056,0.06834917,122390.0,122380.0,0.8199055]
[1752481151252,0.02815348,122390.0,122380.0,0.8199055]
[1752481151458,0.00015348,122390.0,122380.0,0.8199055]
[1752481152637,0.00015348,122390.0,122380.0,0.8457055]
[1752481152958,0.00015348,122390.0,122380.0,0.8199055]
[1752481152959,0.43097506,122390.0,122380.0,0.8199055]
[1752481153157,0.430975,122390.0,122380.0,0.8199055]
[1752481153602,0.43914526,122390.0,122380.0,0.8199055]
[1752481154004,0.42280474,122390.0,122380.0,0.8199055]
[1752481154851,0.43097487,122390.0,122380.0,0.8199055]
[1752481155061,0.42280474,122390.0,122380.0,0.8199055]
[1752481155293,0.37443905,122390.0,122380.0,0.8199055]
[1752481155493,0.41463474,122390.0,122380.0,0.8199055]
[1752481155637,0.4228048,122390.0,122380.0,0.8199055]
[1752481155862,0.09404917,122390.0,122380.0,0.8199055]
[1752481156080,0.42280474,122390.0,122380.0,0.8199055]
[1752481156281,0.42280474,122390.0,122380.0,0.5659855]
[1752481156484,0.61072798,122390.0,122380.0,0.38621824]
[1752481156711,0.61072798,122390.0,122380.0,0.6765237]
[1752481156926,0.59438778,122390.0,122380.0,0.56598582]
[1752481157131,0.99438778,122390.0,122380.0,0.69286589]
[1752481157331,0.99438778,122390.0,122380.0,0.69286595]
[1752481157556,0.99438778,122390.0,122380.0,0.70103695]
[1752481157759,0.99438778,122390.0,122380.0,0.70920788]
[1752481158391,0.99438778,122390.0,122380.0,0.37804711]
[1752481158810,0.99438778,122390.0,122380.0,0.50492711]
[1752481159230,0.98621738,122390.0,122380.0,0.50492711]
[1752481159433,0.99438778,122390.0,122380.0,0.68469463]
[1752481159661,0.99438778,122390.0,122380.0,0.68469469]
[1752481160373,0.99438778,122390.0,122380.0,0.67652363]
[1752481160583,0.99438778,122390.0,122380.0,0.51309831]
[1752481160998,0.99438778,122390.0,122380.0,0.51309837]
[1752481161243,0.99438778,122390.0,122380.0,0.52126957]
[1752481161459,0.99438778,122390.0,122380.0,0.5294407]
[1752481161680,0.98621738,122390.0,122380.0,0.51309837]
[1752481162111,0.98621738,122390.0,122380.0,0.08234711]
[1752481162321,0.98621738,122390.0,122380.0,0.3807837]
[1752481162728,0.98621738,122390.0,122380.0,0.38895483]
[1752481163703,0.66563181,122390.0,122380.0,0.38895483]
[1752481163904,0.98621738,122390.0,122380.0,0.38895483]
[1752481164515,0.99438778,122390.0,122380.0,0.39712589]
[1752481164729,0.67380221,122390.0,122380.0,0.38895483]
[1752481164938,0.99438778,122390.0,122380.0,0.3807837]
[1752481165147,0.99438778,122390.0,122380.0,0.3889547]
[1752481165451,0.99438778,122390.0,122380.0,0.39712563]
[1752481165696,0.99438778,122390.0,122380.0,0.40529649]
[1752481166224,0.99438778,122390.0,122380.0,0.38895483]
[1752481166426,0.99438778,122390.0,122380.0,0.39712589]
[1752481166720,0.83097574,122390.0,122380.0,0.40529675]
[1752481167209,0.8228048,122390.0,122380.0,0.41346755]
[1752481167364,0.81463474,122390.0,122380.0,0.41346755]
[1752481167588,0.09404917,122390.0,122380.0,0.41346755]
[1752481167850,0.09404917,122390.0,122380.0,0.70916755]
[1752481167851,0.0770193,122390.0,122380.0,0.70916755]
[1752481168068,0.06884917,122390.0,122380.0,0.70916755]
[1752481168276,0.07701917,122390.0,122380.0,0.70916755]
[1752481168483,0.0851893,122390.0,122380.0,0.70916755]
[1752481168949,0.39760474,122390.0,122380.0,0.70916755]
[1752481169459,0.02865348,122390.0,122380.0,0.70916755]
[1752481169701,0.06884917,122390.0,122380.0,0.70916755]
[1752481170315,0.02865348,122390.0,122380.0,0.70916755]
[1752481170521,0.06884917,122390.0,122380.0,0.70916755]
[1752481171279,0.04034917,122390.0,122380.0,0.70916755]
[1752481171494,0.00015348,122390.0,122380.0,1.07386755]
[1752481171918,0.00015348,122390.0,122380.0,1.04916755]
[1752481172768,0.35580905,122390.0,122380.0,1.04916755]
[1752481172973,0.34763905,122390.0,122380.0,1.04916755]
[1752481173423,0.35580911,122390.0,122380.0,1.04916755]
[1752481173646,0.34763905,122390.0,122380.0,1.04916755]
[1752481174994,0.02705348,122390.0,122380.0,1.04916755]
[1752481175229,0.00015348,122390.0,122380.0,1.04916755]
[1752481175454,0.32073905,122390.0,122380.0,1.04916755]
[1752481175865,0.00015348,122390.0,122380.0,1.04916755]
[1752481177010,0.00015348,122390.0,122380.0,1.07576755]
[1752481177805,0.00015348,122390.0,122380.0,1.10156755]
[1752481178014,0.00015348,122390.0,122380.0,1.42215312]
[1752481178435,0.00015348,122390.0,122380.0,1.10156755]
[1752481178755,0.00015348,122390.0,122380.0,1.10056755]
[1752481178967,0.00015348,122390.0,122380.0,1.07476755]
[1752481179165,0.00015348,122390.0,122380.0,1.07576755]
[1752481179436,0.00015348,122390.0,122380.0,1.07676755]
[1752481180655,0.00015348,122390.0,122380.0,1.05016755]
[1752481181210,0.00015348,122390.0,122380.0,1.09917755]
[1752481182420,0.00015348,122390.0,122380.0,1.12397755]
[1752481182639,0.37683773,122400.0,122390.0,0.18792303]
[1752481182852,0.37683773,122400.0,122390.0,0.52271014]
[1752481183675,0.33764204,122400.0,122390.0,0.52271014]
[1752481183874,0.01705647,122400.0,122390.0,0.52271014]
[1752481184118,0.001,122400.0,122390.0,1.23699571]
[1752481184316,0.001,122400.0,122390.0,0.91641014]
[1752481185097,0.38678126,122420.0,122410.0,0.18789234]
[1752481185307,0.04019569,122420.0,122410.0,0.87203945]
[1752481185498,0.07436308,122430.0,122420.0,0.18787698]
[1752481185708,0.42836969,122430.0,122420.0,0.52262409]
[1752481185842,0.42836956,122430.0,122420.0,0.52262409]
[1752481186241,0.37183902,122430.0,122420.0,0.52262409]
[1752481186467,0.42836969,122430.0,122420.0,0.52262409]
[1752481186643,0.59989647,122430.0,122420.0,0.33474711]
[1752481186869,0.59989647,122430.0,122420.0,0.51445596]
[1752481187286,0.59989647,122430.0,122420.0,0.52262448]
[1752481187645,0.59989647,122430.0,122420.0,0.51445609]
[1752481187887,0.59989647,122430.0,122420.0,0.52262448]
[1752481188102,0.59989647,122430.0,122420.0,0.52262442]
[1752481188291,0.60289647,122430.0,122420.0,0.52262442]
[1752481188504,0.6110644,122430.0,122420.0,0.53079268]
[1752481188671,0.11078412,122430.0,122420.0,0.53896081]
[1752481188880,0.83336969,122430.0,122420.0,0.53896081]
[1752481189087,0.84153742,122430.0,122420.0,0.53896081]
[1752481189342,0.52095185,122430.0,122420.0,0.53896081]
[1752481189613,0.83653742,122430.0,122420.0,0.53079268]
[1752481189824,1.00089607,122430.0,122420.0,0.53896087]
[1752481190037,1.01923172,122430.0,122420.0,0.53079234]
[1752481190240,1.01106433,122430.0,122420.0,0.53079234]
[1752481190868,0.99472868,122430.0,122420.0,0.53896047]
[1752481191072,0.83953742,122430.0,122420.0,0.53896047]
[1752481191933,0.49444914,122430.0,122420.0,0.53896047]
[1752481192147,0.50261647,122430.0,122420.0,0.53896047]
[1752481192365,0.8395373,122430.0,122420.0,0.53896047]
[1752481192576,0.83953723,122430.0,122420.0,0.53896047]
[1752481193040,1.0182316,122430.0,122420.0,0.52262415]
[1752481193271,1.01006367,122430.0,122420.0,0.53079228]
[1752481193486,0.34708809,122430.0,122420.0,0.53079228]
[1752481193915,0.52678246,122430.0,122420.0,0.52262415]
[1752481194143,0.51861453,122430.0,122420.0,0.52262415]
[1752481194346,0.52678246,122430.0,122420.0,0.52262415]
[1752481194513,0.91661453,122430.0,122420.0,0.82649234]
[1752481194709,0.92478246,122430.0,122420.0,0.82649234]
[1752481195111,0.91661453,122430.0,122420.0,0.83466047]
[1752481195308,0.74508809,122430.0,122420.0,0.83466047]
[1752481196502,0.7287529,122430.0,122420.0,0.83466047]
[1752481196709,0.73692036,122430.0,122420.0,0.83466047]
[1752481196915,0.7287529,122430.0,122420.0,0.83466047]
[1752481197116,0.41633472,122430.0,122420.0,0.83466047]
[1752481197317,0.74508788,122430.0,122420.0,0.83466047]
[1752481197530,0.92478225,122430.0,122420.0,0.81832415]
[1752481197747,0.45180231,122430.0,122420.0,0.82649234]
[1752481197988,0.43267004,122430.0,122420.0,0.83466047]
[1752481198198,0.75325561,122430.0,122420.0,0.83466047]
[1752481198637,0.76142393,122430.0,122420.0,0.82649234]
[1752481198874,0.35325607,122430.0,122420.0,0.83466047]
[1752481199097,0.56837385,122440.0,122430.0,0.17969417]
[1752481199393,0.25646646,122440.0,122430.0,0.17152651]
[1752481199612,0.57705203,122440.0,122430.0,0.18786196]
[1752481199852,0.57705203,122440.0,122430.0,0.18786203]
[1752481200321,0.41370672,122440.0,122430.0,0.20419715]
[1752481200555,0.41370672,122440.0,122430.0,0.2773768]
[1752481200770,0.41370672,122440.0,122430.0,0.28554433]
[1752481200988,0.43204117,122440.0,122430.0,0.28554433]
[1752481201404,0.42387438,122440.0,122430.0,0.28554439]
[1752481201615,0.42487438,122440.0,122430.0,0.28554439]
[1752481201828,0.57188557,122440.0,122430.0,0.08134711]
[1752481202055,0.57188557,122440.0,122430.0,0.08951504]
[1752481202056,0.89247114,122440.0,122430.0,0.08951504]
[1752481202271,0.57188557,122440.0,122430.0,0.0976829]
[1752481202484,0.57188557,122440.0,122430.0,0.26920921]
[1752481202694,0.40853999,122440.0,122430.0,0.28554433]
[1752481202900,0.03777818,122440.0,122430.0,0.28554386]
[1752481203123,0.36653068,122440.0,122430.0,0.28554386]
[1752481203331,0.37469767,122440.0,122430.0,0.28554386]
[1752481203553,0.38286486,122440.0,122430.0,0.2773764]
[1752481203769,0.57311017,122440.0,122430.0,0.2773764]
[1752481204413,0.40976486,122440.0,122430.0,0.28554386]
[1752481204844,0.41793212,122440.0,122430.0,0.28554386]
[1752481205048,0.57311064,122440.0,122430.0,0.26920887]
[1752481205768,0.89465634,122440.0,122430.0,0.08134711]
[1752481205974,0.88648915,122440.0,122430.0,0.08134711]
[1752481206188,0.88648915,122440.0,122430.0,0.25312]
[1752481206403,0.87832189,122440.0,122430.0,0.25312]
[1752481207496,0.87832189,122440.0,122420.0,0.4999129]
[1752481207711,0.32875323,122430.0,122420.0,0.58126001]
[1752481207911,0.33692082,122430.0,122420.0,0.69965195]
[1752481208280,0.37178861,122430.0,122420.0,0.69965195]
[1752481209391,0.3881244,122430.0,122420.0,0.56492382]
[1752481209597,0.37995647,122430.0,122420.0,0.69965195]
[1752481210736,0.37178861,122430.0,122420.0,0.69965195]
[1752481210937,0.37178861,122430.0,122420.0,0.57309195]
[1752481211135,0.55197987,122430.0,122410.0,0.47542373]
[1752481211384,0.4039586,122420.0,122410.0,0.91310871]
[1752481211601,0.57549912,122420.0,122410.0,0.84360711]
[1752481211810,0.55099455,122420.0,122410.0,0.50360711]
[1752481212020,0.55099455,122420.0,122410.0,0.37704711]
[1752481212214,0.54282609,122420.0,122410.0,0.50360711]
[1752481212421,0.53465756,122420.0,122410.0,0.50360711]
[1752481212645,0.53465756,122420.0,122410.0,0.37804711]
[1752481212781,0.57674805,122420.0,122410.0,0.42426]
[1752481213195,0.57674805,122420.0,122410.0,0.42226]
[1752481213413,0.57674805,122420.0,122410.0,0.2957]
[1752481213606,0.25616248,122420.0,122410.0,0.42226]
[1752481213807,0.57674805,122420.0,122410.0,0.42226]
[1752481214010,0.57674805,122420.0,122410.0,0.2957]
[1752481214201,0.57674805,122420.0,122410.0,0.42226]
[1752481215228,0.25616248,122420.0,122410.0,0.12656]
[1752481215432,0.57674805,122420.0,122410.0,0.13472926]
[1752481215635,0.57674805,122420.0,122410.0,0.12656]
[1752481216043,0.1715546,122410.0,122400.0,0.17156833]
[1752481216273,0.5003091,122410.0,122400.0,0.3958147]
[1752481216669,0.52481615,122410.0,122400.0,0.39581477]
[1752481217022,0.51664689,122410.0,122400.0,0.4039843]
[1752481217215,0.51664689,122410.0,122400.0,0.41215376]
[1752481217366,0.50847776,122410.0,122400.0,0.41215376]
[1752481217578,0.50847776,122410.0,122400.0,0.41315376]
[1752481217830,0.51664689,122410.0,122400.0,0.4049843]
[1752481218350,0.51664689,122410.0,122400.0,0.41315376]
[1752481218539,0.52481609,122410.0,122400.0,0.39681477]
[1752481218741,0.51664689,122410.0,122400.0,0.39681477]
[1752481218968,0.50847776,122410.0,122400.0,0.40498423]
[1752481219153,0.50847776,122410.0,122400.0,0.40598423]
[1752481219719,0.50847776,122410.0,122400.0,0.4059843]
[1752481219931,0.50847776,122410.0,122400.0,0.41415376]
[1752481220142,0.33692336,122410.0,122400.0,0.41415376]
[1752481220347,0.35326142,122410.0,122400.0,0.41415376]
[1752481221380,0.34509236,122410.0,122400.0,0.41415376]
[1752481221593,0.35326149,122410.0,122400.0,0.41415376]
[1752481221797,0.34509236,122410.0,122400.0,0.41411376]
[1752481223244,0.35326142,122410.0,122400.0,0.41411376]
[1752481223702,0.34509236,122410.0,122400.0,0.41411376]
[1752481223910,0.37876149,122410.0,122400.0,0.41411376]
[1752481224112,0.37876142,122410.0,122400.0,0.41411376]
[1752481224686,0.37059236,122410.0,122400.0,0.41411376]
[1752481224902,0.55031596,122410.0,122400.0,0.25491544]
[1752481225141,0.55031596,122410.0,122400.0,0.3977747]
[1752481225346,0.54214676,122410.0,122400.0,0.3977747]
[1752481225549,0.54214676,122410.0,122400.0,0.40594416]
[1752481226306,0.37059236,122410.0,122400.0,0.40594416]
[1752481227122,0.36242336,122410.0,122400.0,0.40594416]
[1752481227430,0.33692336,122410.0,122400.0,0.40594416]
[1752481227935,0.33692336,122410.0,122400.0,0.37403537]
[1752481228137,0.34509236,122410.0,122400.0,0.37403537]
[1752481228584,0.00816866,122410.0,122400.0,0.37403537]
[1752481228794,0.33692303,122410.0,122400.0,0.37403537]
[1752481230074,0.93172235,122410.0,122400.0,0.002]
[1752481230291,0.93172235,122410.0,122400.0,0.12852]
[1752481230292,0.91538516,122410.0,122400.0,0.12852]
[1752481230512,0.59479959,122410.0,122400.0,0.12848]
[1752481230730,0.59479959,122410.0,122400.0,0.002]
[1752481230954,1.00934044,122410.0,122400.0,0.002]
[1752481231147,1.13582044,122410.0,122400.0,0.12848]
[1752481231361,1.00934044,122410.0,122400.0,0.002]
[1752481231568,1.13582044,122410.0,122400.0,0.12848]
[1752481231912,1.13582044,122410.0,122400.0,0.12748]
[1752481232142,1.13882044,122410.0,122400.0,0.12648]
[1752481232591,1.14082044,122410.0,122400.0,0.12648]
[1752481233288,1.01434044,122410.0,122400.0,0.12648]
[1752481233508,1.14082044,122410.0,122400.0,0.12648]
[1752481234574,0.17973788,122400.0,122390.0,0.17158235]
[1752481234791,0.50849298,122400.0,122390.0,0.38757992]
[1752481235011,0.50849298,122400.0,122390.0,0.08134711]
[1752481235218,0.54735412,122400.0,122390.0,0.20782711]
[1752481235440,0.1797529,122390.0,122370.0,0.21636519]
[1752481235686,0.2152231,122390.0,122380.0,0.2529437]
[1752481235913,0.17978175,122370.0,122360.0,0.2957]
[1752481236116,0.50853912,122370.0,122360.0,0.20798056]
[1752481236349,0.52596772,122370.0,122360.0,0.20798056]
[1752481236563,0.55935493,122370.0,122360.0,0.08150056]
[1752481236784,0.55935493,122370.0,122360.0,0.20798056]
[1752481236993,0.55835493,122370.0,122360.0,0.08967303]
[1752481237270,0.5746984,122370.0,122360.0,0.22432556]
[1752481237486,0.5484984,122370.0,122360.0,0.38777779]
[1752481237693,0.5484984,122370.0,122360.0,0.39595019]
[1752481238113,0.05730188,122370.0,122360.0,0.40412239]
[1752481238315,0.55766947,122370.0,122360.0,0.39595019]
[1752481238531,0.542326,122370.0,122360.0,0.27764252]
[1752481238746,0.55149767,122370.0,122360.0,0.41229479]
[1752481238960,0.5596694,122370.0,122360.0,0.41229479]
[1752481239168,0.04295881,122370.0,122360.0,0.41229479]
[1752481239388,0.002,122370.0,122360.0,0.46519432]
[1752481239602,0.01017153,122370.0,122360.0,0.46519432]
[1752481239855,0.002,122370.0,122360.0,0.46519432]
[1752481240058,0.41017133,122370.0,122360.0,0.33871432]
[1752481240263,0.41017133,122370.0,122360.0,0.46519432]
[1752481240484,0.42651426,122370.0,122360.0,0.45702219]
[1752481240704,0.7552715,122370.0,122360.0,0.31281439]
[1752481240913,0.7552715,122370.0,122360.0,0.43929399]
[1752481241125,0.92688198,122370.0,122360.0,0.2243253]
[1752481241350,0.91871025,122370.0,122360.0,0.39594953]
[1752481241562,0.91871025,122370.0,122360.0,0.27764173]
[1752481241784,0.74709983,122370.0,122360.0,0.40412173]
[1752481242225,0.74709983,122370.0,122360.0,0.39594986]
[1752481242640,0.7552715,122370.0,122360.0,0.37960513]
[1752481242854,0.74709983,122370.0,122360.0,0.38777753]
[1752481243061,0.91871025,122370.0,122360.0,0.38777753]
[1752481243265,0.91053858,122370.0,122360.0,0.38777753]
[1752481243475,0.91053858,122370.0,122360.0,0.39594986]
[1752481243701,0.91053858,122370.0,122360.0,0.37960513]
[1752481243702,0.91871025,122370.0,122360.0,0.37960513]
[1752481244195,0.91053858,122370.0,122360.0,0.39594986]
[1752481244614,0.91871031,122370.0,122360.0,0.37960513]
[1752481244823,0.52688218,122370.0,122360.0,0.21615316]
[1752481245048,0.52688211,122370.0,122360.0,0.21615316]
[1752481245248,0.51871031,122370.0,122360.0,0.22432569]
[1752481245446,0.51871025,122370.0,122360.0,0.21615316]
[1752481245654,0.52688205,122370.0,122360.0,0.20798056]
[1752481245812,0.51871072,122370.0,122360.0,0.20798056]
[1752481246018,0.51871072,122370.0,122360.0,0.21615316]
[1752481246218,0.52688259,122370.0,122360.0,0.20798056]
[1752481246636,0.20629702,122370.0,122360.0,0.20798056]
[1752481246836,0.52688259,122370.0,122360.0,0.08150056]
[1752481247037,0.52688259,122370.0,122360.0,0.20798056]
[1752481247479,0.52688259,122370.0,122360.0,0.08150056]
[1752481247643,0.51009526,122370.0,122360.0,0.08150056]
[1752481247839,0.51826713,122370.0,122360.0,0.08150056]
[1752481248105,0.51826713,122370.0,122360.0,0.20798056]
[1752481248238,0.5019242,122370.0,122360.0,0.20798056]